bitfinex/quotes_ETHUSD_20260307
["timestamp","ask_amount","ask_price","bid_price","bid_amount"]
[1772920072539,0.50255107,1965.1,1964.8,1.49810942]
[1772920073160,0.001,1965.1,1964.9,0.22576665]
[1772920076761,0.50255107,1965.1,1964.7,0.22562245]
[1772920079066,0.50255107,1965.1,1965.0,0.0011]
[1772920080764,0.50255107,1965.1,1964.9,0.0011]
[1772920080947,0.51385416,1965.0,1964.7,1.49900672]
[1772920082266,0.51385416,1965.3,1964.8,0.46796448]
[1772920083177,0.51385416,1965.3,1964.9,1.76094108]
[1772920083482,0.51385416,1965.3,1965.0,0.4886117]
[1772920087547,0.51385416,1965.3,1964.9,1.76094108]
[1772920088772,1.74705695,1965.4,1965.0,0.4886117]
[1772920089074,0.47504611,1965.4,1965.0,0.4886117]
[1772920089579,1.74711653,1965.3,1964.9,0.4886117]
[1772920089871,1.74711653,1965.3,1964.8,1.76099313]
[1772920089872,0.47504611,1965.2,1964.8,1.76099313]
[1772920090959,0.47504611,1965.2,1964.9,0.4886117]
[1772920091158,0.47504611,1965.2,1964.9,0.4897117]
[1772920091662,0.47604611,1965.2,1964.9,1.76198878]
[1772920093285,0.001,1965.5,1965.1,0.4886117]
[1772920093463,0.47504611,1965.7,1965.0,0.4886117]
[1772920093981,0.47504611,1965.7,1965.2,0.4886117]
[1772920095885,0.47504611,1965.7,1965.4,0.4886117]
[1772920096259,0.47504611,1965.9,1965.4,0.4886117]
[1772920102188,0.47504611,1965.9,1965.5,1.27194098]
[1772920102492,0.47504611,1965.9,1965.5,1.76055268]
[1772920102703,0.47504611,1965.8,1965.3,1.76063442]
[1772920103262,0.47504611,1965.8,1965.4,0.4886117]
[1772920103464,0.47504611,1965.8,1965.5,0.0011]
[1772920103960,0.47604611,1965.8,1965.5,0.0011]
[1772920104495,0.47604611,1965.8,1965.5,1.27304098]
[1772920109397,0.47504611,1965.7,1965.5,0.0011]
[1772920112065,0.001,1965.8,1965.5,0.4897117]
[1772920114300,0.49543989,1965.8,1965.5,1.76162919]
[1772920114599,0.49597875,1966.0,1965.5,1.27301749]
[1772920116400,0.49443989,1965.9,1965.6,0.0011]
[1772920116592,0.001,1965.7,1965.6,0.0011]
[1772920124216,0.49443989,1965.9,1965.6,0.0011]
[1772920124520,0.00153886,1966.0,1965.6,0.5060857]
[1772920124817,0.33324936,1966.0,1965.6,0.5060857]
[1772920126427,0.001,1966.1,1965.9,0.5049857]
[1772920136543,0.001,1966.3,1965.6,0.0011]
[1772920136828,0.001,1966.3,1965.8,0.5049857]
[1772920138645,0.001,1966.3,1966.0,0.5049857]
[1772920140241,0.001,1966.3,1966.0,0.5060857]
[1772920140751,0.001,1966.5,1966.2,0.49218787]
[1772920141112,1.61914138,1966.5,1966.2,0.49218787]
[1772920141740,0.34763998,1966.4,1966.0,1.7648642]
[1772920142221,0.34763998,1966.4,1966.0,1.27267633]
[1772920142422,0.34763998,1966.4,1966.1,0.49414004]
[1772920143674,0.34763998,1966.4,1966.0,0.0011]
[1772920143968,0.34999002,1966.3,1966.0,0.0011]
[1772920144369,1.27233295,1966.5,1966.1,0.49414004]
[1772920144543,1.27230021,1966.5,1966.1,0.49414004]
[1772920144744,0.001,1966.5,1966.2,0.49414004]
[1772920144956,0.35175577,1966.5,1966.2,0.49414004]
[1772920146757,0.35225758,1966.4,1966.0,0.49524004]
[1772920147247,0.35225758,1966.4,1966.0,0.0011]
[1772920148755,0.35225758,1966.4,1966.0,1.7668458]
[1772920148957,0.35372382,1966.3,1966.0,1.7668458]
[1772920150491,0.001,1966.5,1966.0,1.7668458]
[1772920150774,0.00243629,1966.5,1966.1,0.53171451]
[1772920151277,0.00143629,1966.4,1966.1,0.53171451]
[1772920152874,0.00143629,1966.4,1966.2,0.0011]
[1772920153293,0.00243629,1966.4,1966.2,0.0011]
[1772920155060,0.00307161,1966.3,1966.2,0.0011]
[1772920160816,0.00638974,1966.4,1966.2,0.0011]
[1772920161110,0.001,1966.4,1966.2,0.53281451]
[1772920162506,0.001,1966.5,1966.3,0.53171451]
[1772920164904,0.001,1966.5,1966.3,0.53281451]
[1772920167820,0.001,1966.6,1966.4,0.53171451]
[1772920168678,0.001,1966.7,1966.4,0.53171451]
[1772920169083,0.00153886,1967.0,1966.5,1.27129417]
[1772920169273,1.27251245,1967.0,1966.6,0.53171451]
[1772920170093,0.00153886,1967.0,1966.6,0.53171451]
[1772920171314,0.00153886,1967.0,1966.8,0.53171451]
[1772920171682,0.01078495,1967.0,1966.4,0.53171451]
[1772920175138,1.28157807,1966.9,1966.5,0.53171451]
[1772920176709,1.28157807,1966.9,1966.5,0.53281451]
[1772920177110,1.28257807,1966.9,1966.5,0.53281451]
[1772920177332,1.28257807,1966.9,1966.6,0.53171451]
[1772920177333,0.001,1966.9,1966.6,0.53171451]
[1772920179545,0.001,1966.9,1966.7,0.52648959]
[1772920181572,0.00153886,1967.0,1966.8,1.79758985]
[1772920181961,0.00153886,1967.0,1966.8,0.52648959]
[1772920186780,0.00153886,1967.0,1966.8,1.27109742]
[1772920186950,1.29503888,1967.3,1966.9,0.53082987]
[1772920190593,0.01688164,1967.5,1967.0,0.53082987]
[1772920191362,0.01688164,1967.5,1966.8,0.53082987]
[1772920193288,0.01765051,1967.3,1966.9,0.53082987]
[1772920195803,5.08285046,1967.5,1967.0,0.53082987]
[1772920195958,1.2889086,1967.4,1967.0,0.53082987]
[1772920196824,0.01839761,1967.9,1967.0,0.53082987]
[1772920196974,0.01839761,1967.9,1967.1,0.53082987]
[1772920197288,0.0186406,1967.8,1967.1,0.53082987]
[1772920197974,1.27051887,1967.7,1967.1,1.80172921]
[1772920198291,0.0186406,1967.6,1966.7,0.53082987]
[1772920198490,0.0186406,1967.6,1966.5,0.0011]
[1772920198691,0.01888103,1967.4,1966.6,0.53082987]
[1772920200391,0.01936115,1967.2,1966.8,0.53082987]
[1772920201792,0.01936115,1967.2,1966.7,0.0011]
[1772920201981,0.01982122,1967.1,1966.7,0.0011]
[1772920202491,0.01916737,1966.9,1966.5,0.0011]
[1772920205473,0.03021696,1966.7,1966.5,0.0011]
[1772920209798,1.30227612,1966.6,1966.5,0.0011]
[1772920215605,0.49999544,1966.8,1966.5,0.51967998]
[1772920215987,0.49999544,1966.8,1966.4,0.52077998]
[1772920219821,1.27116489,1966.7,1966.4,0.52077998]
[1772920220029,1.77016033,1966.7,1966.4,0.52077998]
[1772920220427,1.77016033,1966.7,1966.4,0.0011]
[1772920220428,0.49899544,1966.6,1966.4,0.0011]
[1772920220615,0.49899544,1966.6,1966.2,0.52077998]
[1772920221326,0.49899544,1966.6,1966.2,1e-08]
[1772920222826,0.49899544,1966.4,1966.0,0.52231884]
[1772920224322,0.49899544,1966.4,1966.3,0.0011]
[1772920224731,1.77035426,1966.4,1966.3,0.0011]
[1772920227435,1.27220365,1966.7,1966.3,0.52077998]
[1772920227737,1.77118505,1966.7,1966.3,0.52077998]
[1772920230235,0.49999544,1966.7,1966.3,1.27249734]
[1772920230438,0.49999544,1966.7,1966.4,0.51967998]
[1772920231952,1.77116281,1966.7,1966.4,0.51967998]
[1772920234651,0.49999544,1966.7,1966.4,0.51967998]
[1772920235087,1.27216299,1966.8,1966.5,0.49449094]
[1772920235088,0.001,1966.8,1966.5,0.49449094]
[1772920235286,0.49852904,1967.2,1966.5,0.49449094]
[1772920236866,1.27090641,1967.1,1966.7,0.49449094]
[1772920237277,1.76938903,1967.2,1966.7,0.49449094]
[1772920238306,0.49852904,1967.1,1966.7,0.49449094]
[1772920240785,0.49852904,1967.1,1966.8,1.27110026]
[1772920241115,0.49852904,1967.1,1966.8,0.49449094]
[1772920242310,0.49852904,1967.2,1966.8,0.49449094]
[1772920242904,0.49852904,1967.2,1966.8,1.7655664]
[1772920243106,0.49852904,1967.2,1966.9,0.49449094]
[1772920244718,1.27181584,1967.3,1966.9,0.49449094]
[1772920245220,1.27178513,1967.3,1967.0,0.49449094]
[1772920245404,0.49852904,1967.2,1966.9,0.49449094]
[1772920247593,1.76937428,1967.2,1966.9,0.49449094]
[1772920248414,0.001,1967.1,1966.9,0.49449094]
[1772920258901,0.001,1967.3,1967.0,0.49449094]
[1772920259299,1.27178305,1967.3,1967.0,0.49449094]
[1772920259498,0.49852904,1967.2,1966.7,1.76560737]
[1772920259705,0.49852904,1967.2,1966.8,0.49449094]
[1772920259903,0.49852904,1967.2,1966.9,0.0011]
[1772920260230,0.49952904,1967.1,1966.9,0.0011]
[1772920263909,0.001,1967.1,1966.9,0.50293536]
[1772920265526,0.53612079,1967.1,1966.9,0.0011]
[1772920271340,0.001,1967.1,1966.9,0.0011]
[1772920272249,0.001,1967.1,1966.9,0.50293536]
[1772920272748,0.001,1967.1,1967.0,0.0011]
[1772920273256,0.53612079,1967.1,1967.0,0.0011]
[1772920277264,0.001,1967.1,1967.0,0.0011]
[1772920279164,0.001,1967.1,1967.0,0.50293536]
[1772920284667,0.001,1967.1,1967.0,0.0011]
[1772920290770,0.53612079,1967.1,1967.0,0.0011]
[1772920292076,0.53612079,1967.1,1966.8,0.0011]
[1772920292244,0.53612079,1967.1,1966.6,0.0011]
[1772920292449,0.001,1967.1,1966.6,0.49173427]
[1772920292850,0.001,1967.1,1966.8,0.49063427]
[1772920293754,0.53344842,1967.1,1966.6,0.49173427]
[1772920293969,0.53344842,1967.1,1966.7,0.49063427]
[1772920294869,1.80437756,1967.1,1966.7,0.49063427]
[1772920295270,0.53244842,1967.0,1966.6,0.49173427]
[1772920296852,0.53244842,1967.0,1966.8,0.0011]
[1772920297069,1.80443367,1967.0,1966.8,0.0011]
[1772920297686,0.53244842,1966.9,1966.8,0.0011]
[1772920300180,1.80443367,1967.0,1966.8,0.0011]
[1772920300758,0.53344842,1967.0,1966.8,0.0011]
[1772920301585,1.80442052,1967.0,1966.8,0.0011]
[1772920303783,0.53344842,1967.0,1966.8,0.0011]
[1772920305687,1.80443133,1967.0,1966.8,0.0011]
[1772920307188,0.53344842,1967.0,1966.8,0.0011]
[1772920307961,1.80441985,1967.0,1966.8,0.0011]
[1772920310587,0.001,1967.0,1966.8,0.49173427]
[1772920313894,0.001,1967.0,1966.8,0.0011]
[1772920314096,0.53344842,1967.0,1966.8,0.0011]
[1772920316679,0.001,1967.0,1966.8,0.49173427]
[1772920319000,0.53344842,1967.0,1966.8,0.0011]
[1772920320473,0.001,1966.9,1966.8,0.0011]
[1772920322490,1.79319253,1967.4,1966.9,0.518831]
[1772920322674,0.52245122,1967.3,1966.9,0.518831]
[1772920325606,1.79325582,1967.3,1966.9,0.518831]
[1772920325785,1.79325582,1967.3,1966.9,1.27102879]
[1772920325974,1.79325582,1967.3,1967.0,0.518831]
[1772920326193,1.79321084,1967.4,1967.0,0.518831]
[1772920326500,1.79297009,1967.7,1967.0,0.518831]
[1772920327806,1.79297009,1967.7,1967.1,1.27090641]
[1772920328106,1.79297009,1967.7,1967.2,0.518831]
[1772920328712,0.52245122,1967.8,1967.2,0.518831]
[1772920330590,1.79297009,1967.7,1967.3,0.518831]
[1772920332711,0.001,1967.6,1967.3,0.518831]
[1772920334011,0.001,1967.6,1967.4,0.518831]
[1772920338909,0.001,1967.6,1967.2,0.518831]
[1772920338910,0.52345122,1967.6,1967.2,0.518831]
[1772920339412,0.001,1967.6,1967.2,0.518831]
[1772920341987,0.52345122,1967.6,1967.2,1.78965068]
[1772920342522,0.52345122,1967.6,1967.3,0.518831]
[1772920344624,0.52345122,1967.6,1967.3,1.78960624]
[1772920344825,0.001,1967.6,1967.4,0.518831]
[1772920345323,0.52399008,1968.0,1967.4,0.518831]
[1772920346322,0.52245122,1967.9,1967.4,0.518831]
[1772920346524,0.52245122,1967.9,1967.5,1.27064803]
[1772920346684,0.52245122,1967.9,1967.6,0.518831]
[1772920346885,0.52245122,1967.9,1967.5,0.518831]
[1772920347109,1.7928456,1967.9,1967.5,0.518831]
[1772920347308,0.52245122,1967.8,1967.1,1.79079454]
[1772920347513,0.52245122,1967.8,1967.2,0.518831]
[1772920347690,0.52245122,1967.8,1967.1,0.519931]
[1772920349490,0.52245122,1967.6,1967.1,0.519931]
[1772920350536,1.27049239,1967.8,1967.2,0.518831]
[1772920350706,0.52245122,1967.8,1967.2,0.518831]
[1772920351842,0.52245122,1967.7,1967.3,1.7896082]
[1772920354017,1.2704178,1967.9,1967.4,0.47957676]
[1772920354226,0.4676482,1967.8,1967.4,0.47957676]
[1772920356617,1.73810458,1967.8,1967.5,0.47957676]
[1772920356840,0.001,1967.6,1967.5,0.47957676]
[1772920358843,0.001,1967.6,1967.5,1.75022479]
[1772920359723,0.001,1967.6,1967.5,0.47957676]
[1772920360029,0.001,1967.6,1967.4,1.75135427]
[1772920361827,0.001,1967.6,1967.5,0.47957676]
[1772920362861,0.4686482,1967.6,1967.4,1.27181248]
[1772920363656,0.001,1967.6,1967.4,1.27181248]
[1772920363858,0.001,1967.6,1967.4,1.75138924]
[1772920364561,0.001,1967.6,1967.5,0.47957676]
[1772920364951,0.4676482,1967.9,1967.5,0.47957676]
[1772920368964,0.001,1967.6,1967.5,1.75022479]
[1772920374490,0.001,1967.6,1967.5,1.27064803]
[1772920377141,0.001,1967.6,1967.5,1.75022479]
[1772920381471,0.001,1967.6,1967.5,0.47957676]
[1772920381641,0.001,1967.6,1967.5,0.0011]
[1772920382147,0.46577131,1967.6,1967.5,0.0011]
[1772920386380,0.001,1967.6,1967.5,0.0011]
[1772920389299,0.47611004,1967.6,1967.5,0.0011]
[1772920392994,0.001,1967.6,1967.5,0.0011]
[1772920393200,0.001,1967.6,1967.5,0.51179463]
[1772920393500,0.001,1967.6,1967.5,0.0011]
[1772920394201,0.47611004,1967.6,1967.5,0.0011]
[1772920396406,0.001,1967.6,1967.5,0.0011]
[1772920396700,0.001,1967.6,1967.5,0.51179463]
[1772920399203,0.001,1967.6,1967.5,0.0011]
[1772920415090,0.47839796,1967.6,1967.5,0.0011]
[1772920419606,0.001,1967.6,1967.5,0.0011]
[1772920429346,0.47839796,1967.6,1967.3,0.0011]
[1772920430324,0.001,1967.5,1967.3,0.0011]
[1772920430541,0.47739796,1967.4,1967.3,0.0011]
[1772920433357,0.47839796,1967.5,1967.3,0.0011]
[1772920442175,0.47839796,1967.5,1967.4,0.0011]
[1772920450698,0.001,1967.5,1967.4,0.0011]
[1772920451606,0.001,1967.6,1967.5,0.45945043]
[1772920454677,0.001,1967.6,1967.5,0.46055043]
[1772920455917,0.45810898,1968.0,1967.6,0.45945043]
[1772920456496,1.72843807,1968.0,1967.6,1.73002634]
[1772920456981,1.72843807,1968.0,1967.7,0.45945043]
[1772920459417,0.45810898,1968.0,1967.7,1.72995431]
[1772920460431,0.45810898,1968.0,1967.7,0.45945043]
[1772920462633,0.45810898,1968.0,1967.7,1.72995552]
[1772920463735,5.08065754,1968.3,1967.9,0.45945043]
[1772920463736,1.72674368,1968.3,1967.9,0.45945043]
[1772920466451,1.72660698,1968.5,1968.0,0.45945043]
[1772920466962,1.77734426,1968.6,1968.0,0.45945043]
[1772920467744,0.001,1968.2,1968.0,0.45945043]
[1772920467946,1.77734426,1968.6,1968.0,0.45945043]
[1772920468639,1.77734426,1968.6,1968.2,0.45945043]
[1772920469836,1.32077414,1968.6,1968.2,0.45945043]
[1772920470036,0.45657012,1968.5,1968.2,0.45945043]
[1772920472536,1.32078815,1968.6,1968.3,0.46007751]
[1772920472739,0.05082328,1968.6,1968.3,0.46007751]
[1772920473532,0.52211269,1968.6,1968.3,0.46007751]
[1772920474366,0.05082328,1968.6,1968.3,0.46007751]
[1772920477766,0.52211269,1968.6,1968.3,0.46007751]
[1772920479469,1.79205105,1968.6,1968.3,0.46007751]
[1772920479769,0.002,1968.5,1968.3,0.46107751]
[1772920492933,0.002,1968.4,1968.3,0.46107751]
[1772920497546,0.002,1968.4,1968.3,0.001]
[1772920503659,0.002,1968.4,1968.3,0.45611138]
[1772920507783,2.1272307,1969.0,1968.4,0.45511138]
[1772920507962,1.64739093,1969.0,1968.4,0.45511138]
[1772920508156,0.47983977,1968.9,1968.4,0.45511138]
[1772920509771,0.47983977,1968.8,1968.4,1.72516543]
[1772920511464,0.47983977,1968.8,1968.5,0.45511138]
[1772920511765,0.47983977,1968.8,1968.3,5.08152524]
[1772920511766,0.47983977,1968.7,1968.3,0.001]
[1772920515980,1.74977779,1968.6,1968.3,0.001]
[1772920517872,0.47983977,1968.5,1968.3,0.001]
[1772920519599,0.002,1968.4,1968.3,0.001]
[1772920521170,0.48183977,1968.4,1968.3,0.001]
[1772920522089,0.002,1968.4,1968.3,0.001]
[1772920523211,0.47983977,1968.3,1968.0,0.45611138]
[1772920523601,0.47983977,1968.3,1968.0,1.72643495]
[1772920525718,0.002,1968.5,1968.0,1.27132357]
[1772920526017,0.002,1968.5,1968.1,0.45511138]
[1772920529089,0.48183977,1968.5,1968.1,1.72532528]
[1772920531128,0.48183977,1968.5,1968.2,0.45511138]
[1772920533509,0.48183977,1968.5,1968.2,0.45611138]
[1772920542242,0.002,1968.5,1968.2,0.45611138]
[1772920546333,0.48601825,1968.5,1968.2,0.45611138]
[1772920546902,0.48601825,1968.5,1968.3,0.001]
[1772920547106,0.48601825,1968.4,1968.3,0.001]
[1772920547336,0.48601825,1968.4,1968.0,0.001]
[1772920549223,1.75611198,1968.4,1968.0,0.001]
[1772920550836,1.75611198,1968.4,1968.0,0.46492949]
[1772920551134,0.48401825,1968.3,1968.0,0.46492949]
[1772920553218,1.75420127,1968.3,1968.0,0.46492949]
[1772920553608,0.48401825,1968.3,1968.0,0.46492949]
[1772920556009,0.48401825,1968.3,1968.0,1.73524982]
[1772920557651,0.48601825,1968.4,1968.1,0.46392949]
[1772920559334,0.48601825,1968.4,1968.1,0.46502949]
[1772920559651,0.001,1968.3,1968.1,0.46502949]
[1772920561049,0.4788018,1968.3,1968.1,0.0011]
[1772920562144,0.4798018,1968.4,1968.1,0.47798188]
[1772920562649,1.7498769,1968.4,1968.1,0.47798188]
[1772920564550,0.4798018,1968.4,1968.1,1.74821893]
[1772920564747,0.4798018,1968.4,1968.1,0.47798188]
[1772920566131,0.002,1968.4,1968.1,0.47798188]
[1772920568959,0.002,1968.4,1968.1,1.27136052]
[1772920569128,0.002,1968.4,1968.2,0.45524952]
[1772920571550,0.002,1968.4,1968.2,0.45624952]
[1772920571728,0.002,1968.3,1968.2,1.72644563]
[1772920571927,0.002,1968.3,1968.2,0.45624952]
[1772920572148,0.002,1968.3,1968.2,0.001]
[1772920572850,0.002,1968.3,1968.2,0.45624952]
[1772920573150,0.47494319,1968.5,1968.2,1.72644563]
[1772920573351,0.47494319,1968.5,1968.2,0.45624952]
[1772920579270,0.47494319,1968.5,1968.2,1.72643195]
[1772920579865,0.002,1968.5,1968.3,0.45524952]
[1772920584264,0.47494319,1968.5,1968.3,0.001]
[1772920584441,0.47494319,1968.4,1968.3,0.001]
[1772920585346,0.002,1968.4,1968.3,0.001]
[1772920586243,0.47494319,1968.4,1968.3,0.001]
[1772920588779,0.002,1968.4,1968.3,0.001]
[1772920590275,0.002,1968.4,1968.3,0.45624952]
[1772920594283,0.002,1968.4,1968.3,0.48469459]
[1772920596395,0.002,1968.4,1968.3,0.001]
[1772920599384,0.002,1968.4,1968.3,0.48469459]
[1772920601698,0.48539151,1968.6,1968.3,1.75482617]
[1772920601978,0.002,1968.7,1968.4,0.48369459]
[1772920602779,0.48739151,1968.7,1968.4,0.48369459]
[1772920604592,0.48739151,1968.7,1968.4,1.7537382]
[1772920607692,0.48739151,1968.7,1968.4,1.7547382]
[1772920607994,0.002,1968.6,1968.4,1.7547382]
[1772920608366,0.002,1968.6,1968.5,0.48369459]
[1772920612707,0.002,1968.7,1968.5,0.48369459]
[1772920612902,1.64740531,1969.0,1968.5,0.48369459]
[1772920613207,0.86306437,1969.0,1968.5,0.48369459]
[1772920613511,2.13274482,1969.0,1968.5,0.48369459]
[1772920613809,1.64735331,1969.0,1968.5,0.48369459]
[1772920614008,0.48539151,1968.9,1968.5,0.48369459]
[1772920615802,0.48539151,1968.9,1968.6,1.26993802]
[1772920616807,1.64735773,1969.0,1968.7,0.48369459]
[1772920616808,0.37767286,1969.0,1968.7,0.48369459]
[1772920617210,0.48539151,1968.9,1968.6,0.48369459]
[1772920617412,0.48539151,1968.9,1968.5,1.75366615]
[1772920617914,0.48539151,1968.9,1968.6,0.48369459]
[1772920618397,0.37767286,1969.0,1968.6,0.48369459]
[1772920620213,0.37767286,1969.0,1968.7,1.26987352]
[1772920620384,0.37767286,1969.0,1968.7,1.75356811]
[1772920620585,0.46106326,1969.3,1968.8,0.47176589]
[1772920620995,0.002,1968.9,1968.8,0.47176589]
[1772920621196,0.002,1969.1,1968.8,0.47176589]
[1772920621399,1.730512,1969.4,1968.8,0.47176589]
[1772920623117,0.46346654,1969.3,1968.9,1.26974452]
[1772920623288,0.46346654,1969.3,1969.0,0.45535831]
[1772920625330,0.46346654,1969.6,1969.2,0.45535831]
[1772920627323,1.2692417,1969.7,1969.4,0.45535831]
[1772920627489,0.46346654,1969.7,1969.4,0.45535831]
[1772920629398,1.26921467,1969.8,1969.4,0.45535831]
[1772920629722,1.73268121,1969.8,1969.4,0.45535831]
[1772920630397,1.73267101,1969.8,1969.4,0.45535831]
[1772920631702,1.27057439,1970.0,1969.5,0.45535831]
[1772920632103,0.46346654,1969.9,1969.5,0.45535831]
[1772920632929,0.00153886,1970.0,1969.6,0.45535831]
[1772920633311,0.4650054,1970.0,1969.6,0.45535831]
[1772920633512,0.002,1969.8,1969.6,0.45535831]
[1772920633906,0.4650054,1970.0,1969.7,1.72458712]
[1772920634106,0.4670054,1970.0,1969.7,1.72458712]
[1772920635008,0.00353886,1970.0,1969.8,0.45535831]
[1772920635625,0.00353886,1970.0,1969.7,1.26922881]
[1772920635824,0.00353886,1970.0,1969.7,1.72458712]
[1772920636340,0.00353886,1970.0,1969.8,0.45535831]
[1772920637148,1.7324245,1970.2,1969.8,0.45535831]
[1772920638250,0.46346654,1970.2,1969.8,0.45535831]
[1772920638436,0.46346654,1970.2,1969.9,0.45535831]
[1772920639444,1.73237538,1970.2,1969.9,0.45535831]
[1772920640809,1.26878634,1970.4,1970.0,0.45535831]
[1772920641014,1.26878634,1970.4,1969.9,1.26905037]
[1772920641015,0.46346654,1970.3,1969.9,1.72440868]
[1772920641842,0.46346654,1970.3,1969.9,0.45535831]
[1772920643210,0.46346654,1970.3,1969.8,1.26911999]
[1772920643417,0.46346654,1970.2,1969.8,0.45535831]
[1772920644744,0.46346654,1970.3,1969.8,0.45535831]
[1772920645438,0.46346654,1970.3,1970.0,0.45535831]
[1772920645954,1.26880712,1970.4,1970.0,0.45535831]
[1772920646454,1.73227366,1970.4,1970.0,0.45635831]
[1772920646640,0.002,1970.2,1970.0,0.45635831]
[1772920647242,1.73227366,1970.4,1970.0,0.45635831]
[1772920647243,0.46346654,1970.4,1970.0,0.45635831]
[1772920648355,1.26877874,1970.4,1970.0,1.7253743]
[1772920648530,0.46346654,1970.3,1970.0,0.001]
[1772920650153,0.39861318,1970.5,1970.1,0.45535831]
[1772920650453,0.33437337,1970.7,1970.4,0.45535831]
[1772920652226,0.39580462,1970.8,1970.4,0.45535831]
[1772920652427,0.39580462,1970.8,1970.4,1.72408387]
[1772920652956,0.39580462,1970.8,1970.4,1.76621333]
[1772920653156,0.0614517,1970.8,1970.4,1.26872556]
[1772920653358,0.33433293,1971.4,1970.6,0.49748777]
[1772920653806,5.0712604,1971.9,1970.6,0.49748777]
[1772920653807,8.04359444,1972.1,1970.7,0.14948499]
[1772920653931,1.26932921,1972.0,1970.8,0.50042746]
[1772920654133,1.26932921,1972.0,1971.0,0.50042746]
[1772920654459,1.26932921,1972.0,1971.2,0.50042746]
[1772920654667,1.26932921,1972.0,1971.1,1.363]
[1772920654668,1.26932921,1972.0,1971.4,0.50042746]
[1772920654832,0.96932921,1972.0,1971.4,0.50042746]
[1772920655364,0.96932921,1972.0,1971.1,0.50042746]
[1772920656964,0.96932921,1972.0,1971.2,1.76869044]
[1772920658184,0.96932921,1972.0,1971.0,1.77031996]
[1772920658489,0.96932921,1972.0,1970.4,0.065536]
[1772920658689,1.10054159,1971.0,1970.3,0.50042746]
[1772920658982,4.4707376,1971.9,1970.4,0.50042746]
[1772920658983,1.26806999,1971.5,1970.4,0.50042746]
[1772920660173,1.26806999,1971.5,1970.9,0.001]
[1772920662373,1.26806999,1971.5,1970.9,0.50142746]
[1772920663794,1.26787706,1971.8,1971.0,1.76881913]
[1772920663939,1.26787706,1971.8,1971.1,0.50042746]
[1772920665878,1.26787706,1971.8,1971.2,0.50042746]
[1772920667499,1.26787706,1971.8,1971.0,1.76878466]
[1772920667872,1.26787706,1971.8,1971.0,0.50042746]
[1772920668506,1.26787706,1971.8,1971.1,0.50042746]
[1772920668855,1.26787706,1971.8,1970.9,1.306]
[1772920668856,0.901809,1971.7,1970.9,0.50142746]
[1772920668985,0.901809,1971.5,1970.9,0.001]
[1772920669994,1.26813432,1971.4,1970.9,0.001]
[1772920671892,5.07253728,1971.6,1970.9,0.001]
[1772920672611,5.07253728,1971.6,1970.9,0.50142746]
[1772920672805,5.07201248,1971.7,1970.9,0.50142746]
[1772920673615,5.07201248,1971.7,1971.0,0.001]
[1772920677514,2.25272117,1971.5,1970.9,0.001]
[1772920678020,5.07201248,1971.7,1970.9,0.001]
[1772920678184,2.25272117,1971.5,1970.9,0.001]
[1772920678514,1.26813432,1971.4,1970.9,0.001]
[1772920680322,2.25272117,1971.2,1970.2,0.50042746]
[1772920680709,1.26832732,1971.1,1970.2,0.50042746]
[1772920681117,1.26781276,1971.9,1970.2,0.50042746]
[1772920681288,1.26781276,1971.9,1970.4,0.50042746]
[1772920681488,1.26781276,1971.9,1970.6,0.50042746]
[1772920681712,1.26781276,1971.9,1970.8,0.50042746]
[1772920682596,5.07278993,1972.0,1971.0,0.50042746]
[1772920685609,2.60095474,1971.9,1970.9,0.50438066]
[1772920686919,2.60095474,1971.9,1971.1,0.001]
[1772920687094,2.60295474,1971.9,1971.1,0.001]
[1772920687798,1.26787706,1971.8,1971.1,0.001]
[1772920688214,1.26787706,1971.8,1971.1,0.50538066]
[1772920691120,0.46585964,1971.7,1971.0,0.001]
[1772920693598,0.46585964,1971.5,1971.0,0.001]
[1772920696529,0.46585964,1971.3,1971.0,0.001]
[1772920699024,0.46585964,1971.1,1971.0,0.001]
[1772920699618,0.46585964,1971.1,1970.3,1.299]
[1772920699619,0.46585964,1971.1,1970.1,0.48158647]
[1772920699822,0.46585964,1970.9,1970.1,0.48158647]
[1772920701033,0.46585964,1970.7,1970.1,0.48158647]
[1772920702909,0.46585964,1970.7,1970.2,0.48158647]
[1772920703236,1.26864914,1970.6,1970.2,0.48158647]
[1772920703604,5.07404783,1970.9,1970.3,0.48158647]
[1772920705232,5.53990747,1970.9,1970.3,0.48158647]
[1772920706234,0.46585964,1970.8,1970.3,0.48158647]
[1772920707332,1.26858476,1970.7,1970.4,0.48158647]
[1772920708436,0.46585964,1970.6,1970.0,1.27152896]
[1772920708608,0.46585964,1970.6,1970.1,0.48158647]
[1772920712229,0.46585964,1970.4,1970.1,0.48158647]
[1772920712425,1.26871352,1970.5,1970.1,0.48158647]
[1772920712623,1.75561728,1970.5,1970.1,0.48158647]
[1772920714542,1.75561728,1970.5,1970.2,0.001]
[1772920714745,1.75561728,1970.5,1970.2,0.46138789]
[1772920715955,1.26871352,1970.5,1970.2,0.46138789]
[1772920718950,1.75561728,1970.5,1970.2,0.46138789]
[1772920719356,0.48690376,1970.4,1970.2,0.001]
[1772920719650,0.48690376,1970.4,1970.0,0.46292675]
[1772920721655,1.75574606,1970.3,1970.0,0.46292675]
[1772920724260,1.2688423,1970.3,1970.0,0.00253886]
[1772920724560,1.75566885,1970.5,1970.1,0.46038789]
[1772920724747,0.48690376,1970.4,1970.1,0.46038789]
[1772920725256,0.48690376,1970.4,1970.0,0.46292675]
[1772920725664,1.75574606,1970.3,1970.0,0.46292675]
[1772920726143,0.48690376,1970.2,1970.0,0.00253886]
[1772920727951,1.7558202,1970.2,1970.0,0.00253886]
[1772920729948,0.48690376,1970.2,1970.0,0.00253886]
[1772920730259,1.75581985,1970.2,1970.0,0.00253886]
[1772920731938,0.48690376,1970.5,1970.0,0.46292675]
[1772920734167,1.26877791,1970.4,1970.0,0.46292675]
[1772920734366,1.75568167,1970.4,1970.0,0.46292675]
[1772920738442,1.26877791,1970.4,1970.0,0.46292675]
[1772920738642,1.75568167,1970.4,1970.0,0.46292675]
[1772920741373,0.45942084,1970.3,1970.0,0.46292675]
[1772920741577,0.45942084,1970.3,1970.0,0.00253886]
[1772920742075,0.45942084,1970.3,1970.0,0.45382806]
[1772920742383,0.002,1970.3,1970.1,0.46670453]
[1772920742884,0.46214643,1970.3,1970.1,0.001]
[1772920746889,0.002,1970.3,1970.1,0.46670453]
[1772920751497,1.26852039,1970.8,1970.2,0.46570453]
[1772920751711,1.72866682,1970.8,1970.2,0.46570453]
[1772920751864,0.46014643,1970.8,1970.2,0.46570453]
[1772920753383,1.72873119,1970.7,1970.3,0.46570453]